bitfinex/quotes_ETHUSD_20250622
["timestamp","ask_amount","ask_price","bid_price","bid_amount"]
[1750604496517,4.54044348,2202.5,2201.8,5.27100157]
[1750604496667,9.4269,2202.7,2201.9,4.54148393]
[1750604496863,4.54051643,2202.4,2201.8,5.27098318]
[1750604497123,8.666,2202.3,2201.5,5.27158113]
[1750604497401,8.666,2202.3,2201.5,5.27164648]
[1750604497402,4.54119315,2202.1,2201.5,5.27164648]
[1750604497583,0.7599,2202.2,2201.6,10.0]
[1750604497787,8.665,2202.1,2201.6,4.54203076]
[1750604497987,8.665,2202.1,2201.5,6.25307005]
[1750604498222,8.665,2202.1,2201.6,10.0]
[1750604498420,4.54144672,2202.0,2201.0,12.24478093]
[1750604498725,4.54144672,2202.0,2200.9,7.97278512]
[1750604498726,8.665,2202.1,2201.1,0.04542134]
[1750604499010,0.7622,2201.7,2201.0,4.5433671]
[1750604499217,13.20734215,2201.6,2201.0,4.54338936]
[1750604499426,10.51614413,2201.6,2201.1,4.54304287]
[1750604499711,0.7622,2201.7,2201.1,12.24478093]
[1750604500004,8.664,2201.7,2201.6,10.0]
[1750604500303,0.821,2203.1,2201.7,0.55]
[1750604500503,0.821,2202.4,2201.8,14.54167602]
[1750604500665,8.663,2202.3,2201.8,14.54167602]
[1750604500871,8.663,2202.2,2202.1,4.54103179]
[1750604501066,8.663,2202.2,2201.5,4.54231311]
[1750604501067,5.36226022,2202.1,2201.5,4.54231311]
[1750604501266,5.36226022,2202.1,2201.0,5.27264869]
[1750604501267,4.54147003,2202.0,2201.4,4.54250262]
[1750604501497,7.2425781,2201.9,2201.5,10.0]
[1750604501692,3.96147725,2201.9,2201.4,14.54253623]
[1750604501921,4.54173857,2201.8,2201.1,4.54307361]
[1750604502073,4.54209444,2201.7,2201.2,4.54296453]
[1750604502405,4.54147626,2202.0,2201.2,10.0]
[1750604502606,8.662,2201.6,2201.2,4.54286186]
[1750604502770,8.662,2201.6,2201.3,10.0]
[1750604502971,0.53624763,2201.9,2201.5,4.54233125]
[1750604503170,8.661,2201.8,2201.7,4.54194486]
[1750604503620,2.01593007,2202.0,2201.9,4.54153231]
[1750604504137,2.01593007,2202.0,2201.9,27.33631324]
[1750604504272,8.659,2203.0,2202.8,4.53951176]
[1750604504483,8.659,2203.1,2203.0,4.53926463]
[1750604504719,5.56641235,2203.5,2203.2,4.5388063]
[1750604504880,11.91764124,2203.4,2202.5,0.7293]
[1750604505214,16.4561845,2203.4,2202.5,10.0]
[1750604505415,0.55664124,2203.4,2202.8,4.53955596]
[1750604505730,0.55664124,2203.4,2202.5,9.95]
[1750604506043,0.821,2203.5,2202.5,9.95]
[1750604506044,8.659,2203.3,2202.9,4.53938184]
[1750604506523,8.659,2203.3,2203.0,4.53925001]
[1750604506719,8.659,2203.3,2202.6,4.53997311]
[1750604506933,13.1978306,2203.3,2202.3,4.54063964]
[1750604507137,0.7743,2203.1,2202.6,4.54005671]
[1750604507286,0.53131586,2203.0,2202.6,4.54005671]
[1750604507484,3.23231586,2203.0,2202.4,4.54037237]
[1750604507697,7.77164172,2203.0,2202.3,4.54060049]
[1750604507936,4.53987744,2202.8,2202.1,4.5411073]
[1750604508233,5.31433724,2202.7,2201.5,12.97408093]
[1750604508393,4.54010119,2202.6,2201.7,4.54194486]
[1750604508595,12.66173372,2202.7,2202.2,4.54077107]
[1750604509092,11.355,2202.6,2202.3,4.54070621]
[1750604509283,0.7743,2202.7,2202.2,4.54078127]
[1750604509507,8.654,2202.5,2202.1,4.54104686]
[1750604509707,8.654,2202.5,2202.1,10.0]
[1750604509971,0.7743,2202.4,2201.5,0.7293]
[1750604510109,0.7743,2202.4,2201.2,12.24478093]
[1750604510110,4.54070744,2202.3,2201.6,4.54202088]
[1750604510310,4.54116229,2202.1,2201.6,4.54202088]
[1750604510510,0.805,2201.9,2201.4,4.54245678]
[1750604510828,0.805,2201.9,2201.2,0.7293]
[1750604510829,0.805,2201.9,2201.3,4.54271765]
[1750604511037,5.34668077,2201.9,2201.0,10.0]
[1750604511222,8.652,2202.0,2200.7,4.54387237]
[1750604511223,0.805,2201.8,2200.7,4.54387237]
[1750604511428,4.54278155,2201.3,2200.7,4.54389748]
[1750604511631,8.651,2201.2,2200.6,4.54406708]
[1750604511846,0.805,2201.7,2200.7,10.0454367]
[1750604512049,8.65,2201.6,2201.2,4.54297655]
[1750604512209,8.65,2201.6,2201.3,10.0]
[1750604512409,8.65,2201.6,2201.3,4.54275591]
[1750604512708,8.65,2201.6,2200.9,10.0]
[1750604512709,8.65,2201.6,2201.5,10.0]
[1750604512910,8.65,2201.6,2200.7,5.82329924]
[1750604512911,8.65,2201.6,2201.1,22.24478093]
[1750604513209,8.65,2201.6,2201.4,10.0]
[1750604513918,8.65,2201.6,2201.2,4.54286365]
[1750604514147,8.649,2201.5,2201.3,10.0]
[1750604514437,8.649,2201.5,2201.3,14.54259845]
[1750604514636,8.649,2201.5,2201.3,10.0]
[1750604514986,8.649,2201.5,2200.9,4.54347696]
[1750604514987,14.13686537,2201.5,2200.9,4.54347696]
[1750604515279,14.13686537,2201.5,2201.0,10.0]
[1750604515450,4.54259969,2201.4,2201.0,10.0]
[1750604515671,0.9454,2201.5,2201.2,10.0]
[1750604515864,0.9454,2201.5,2201.1,10.0]
[1750604516069,0.805,2201.7,2201.3,10.0]
[1750604516273,8.646,2201.6,2201.3,10.0]
[1750604516584,8.646,2201.6,2201.3,14.54276088]
[1750604516783,8.646,2201.6,2201.3,4.54276088]
[1750604516952,8.646,2201.6,2201.2,10.0]
[1750604516953,8.646,2201.6,2201.5,4.5422735]
[1750604517354,8.646,2201.6,2201.3,10.0]
[1750604517580,10.6818,2201.6,2201.3,10.0]
[1750604517889,10.6818,2201.6,2201.1,10.0]
[1750604518052,10.6818,2201.6,2201.1,14.5431559]
[1750604518258,10.6818,2201.6,2201.3,14.54263217]
[1750604518642,10.6818,2201.6,2201.3,4.54274622]
[1750604518994,0.805,2201.7,2201.1,0.55]
[1750604519196,8.643,2202.4,2202.0,4.54132606]
[1750604519486,4.5392393,2203.1,2202.0,4.54132606]
[1750604519487,9.4176,2202.7,2202.0,10.0]
[1750604519689,8.643,2202.2,2202.0,14.54132606]
[1750604520389,8.643,2202.2,2202.0,10.0]
[1750604520755,4.54039576,2202.5,2202.0,10.0]
[1750604520984,10.5862533,2202.1,2202.0,10.0]
[1750604521185,16.96059847,2202.1,2202.0,10.0]
[1750604521391,1.9442533,2202.1,2202.0,10.0]
[1750604521599,1.9442533,2202.1,2201.3,12.24478093]
[1750604521600,0.7746,2202.0,2200.9,0.7293]
[1750604521807,0.7746,2202.0,2201.1,12.24478093]
[1750604522043,4.54205445,2201.7,2201.1,4.54303154]
[1750604522203,4.54217614,2201.6,2201.1,4.54303154]
[1750604522407,13.18139857,2201.5,2200.9,0.7293]
[1750604522605,0.7746,2201.4,2200.6,0.46065913]
[1750604522930,2.674,2201.3,2200.5,3.95800159]
[1750604523251,7.21684632,2201.3,2200.6,4.54409025]
[1750604523408,7.21682518,2201.3,2200.7,10.0]
[1750604523738,8.638,2201.2,2200.8,0.04543946]
[1750604523941,5.31732122,2201.4,2201.0,4.54338492]
[1750604523942,0.7746,2201.4,2201.0,4.54338492]
[1750604524124,8.637,2201.5,2201.3,10.0]
[1750604524327,8.637,2201.5,2201.4,14.54256382]
[1750604524498,8.636,2202.0,2201.8,4.54160459]
[1750604524695,8.636,2202.0,2201.5,10.0]
[1750604524912,8.636,2202.0,2201.6,10.0]
[1750604524913,4.54186955,2201.8,2201.6,10.0]
[1750604525132,0.7746,2201.6,2200.6,0.45920408]
[1750604525333,8.636,2201.5,2200.8,10.0]
[1750604525497,8.636,2201.5,2201.2,10.0]
[1750604525697,14.84102615,2201.5,2201.0,14.54330393]
[1750604526000,10.29866467,2201.5,2200.9,4.54358056]
[1750604526535,3.4486,2201.6,2201.4,10.0]
[1750604526838,8.634,2201.5,2201.3,14.54269343]
[1750604526994,8.634,2201.4,2201.3,14.54269343]
[1750604527194,0.7746,2201.6,2201.4,4.54253991]
[1750604527395,0.7701,2202.0,2201.4,10.04542576]
[1750604527620,13.17456781,2201.9,2201.4,10.0]
[1750604527838,8.633,2201.9,2201.4,14.54254213]
[1750604528496,8.633,2201.9,2201.1,0.7293]
[1750604528698,4.54264957,2201.4,2200.7,4.54400872]
[1750604529036,8.632,2201.3,2200.8,4.54366125]
[1750604529416,8.632,2201.3,2200.9,14.54358564]
[1750604530195,8.632,2201.2,2200.8,10.0]
[1750604530503,8.632,2201.2,2201.1,4.54318295]
[1750604530927,0.7701,2201.7,2201.0,10.55]
[1750604531099,0.7701,2201.7,2201.3,14.54277018]
[1750604531100,8.63,2201.4,2201.3,14.54277018]
[1750604531294,0.7701,2201.7,2201.6,10.0]
[1750604531537,9.3991,2201.7,2201.6,10.0]
[1750604532149,9.3991,2201.7,2201.3,10.0]
[1750604532150,0.7701,2201.7,2201.3,10.0]
[1750604532510,0.7701,2201.7,2201.4,4.54246651]
[1750604532747,0.7701,2201.7,2201.1,1.055]
[1750604533052,0.7701,2201.7,2201.5,4.54224228]
[1750604533194,0.7701,2201.7,2201.6,10.0]
[1750604533396,0.762,2202.0,2201.6,10.0]
[1750604533600,8.626,2201.9,2201.4,0.7293]
[1750604533831,8.626,2201.9,2201.8,10.0]
[1750604534011,8.626,2201.9,2201.7,4.54192461]
[1750604534012,8.626,2201.9,2201.7,10.0]
[1750604534210,8.626,2201.9,2201.8,4.54173857]
[1750604534434,1.9442533,2202.1,2201.6,10.0]
[1750604534646,8.626,2202.0,2201.8,4.54160836]
[1750604534798,1.9442533,2202.1,2201.6,12.86738988]
[1750604534799,1.9442533,2202.1,2201.9,4.54153231]
[1750604535004,1.9442533,2202.1,2202.0,14.54132606]
[1750604535417,1.9442533,2202.1,2202.0,4.54132606]
[1750604536242,1.9442533,2202.1,2201.7,10.0]
[1750604536603,1.9442533,2202.1,2201.9,4.54140656]
[1750604536807,4.54153231,2201.9,2201.2,4.54284497]
[1750604537057,4.54196053,2201.7,2201.2,4.54284497]
[1750604537403,4.54194486,2201.7,2201.1,4.54305017]
[1750604537718,4.54215962,2201.6,2201.2,10.0]
[1750604538037,4.54300755,2201.2,2200.7,4.54391192]
[1750604538211,8.621,2201.1,2200.7,4.54391192]
[1750604538535,8.62,2201.1,2201.0,4.54326446]
[1750604539106,8.62,2201.1,2200.7,4.58941772]
[1750604539107,0.7562,2201.6,2200.8,10.0]
[1750604539438,9.04342142,2201.5,2201.1,4.54302638]
[1750604539637,8.619,2201.5,2201.0,14.54328167]
[1750604539803,4.96714618,2201.4,2201.0,10.0]
[1750604540008,10.32057957,2201.5,2201.0,14.54338833]
[1750604540200,10.32057957,2201.5,2201.1,4.54299884]
[1750604540427,3.4302,2201.6,2200.9,12.24478093]
[1750604540428,0.7562,2201.6,2200.9,12.24478093]
[1750604540632,0.7562,2201.6,2200.6,5.73558405]
[1750604540633,8.617,2201.5,2200.6,11.19137215]
[1750604540842,0.7678,2201.3,2200.5,15.47348252]
[1750604541044,8.617,2201.2,2200.7,4.54396688]
[1750604541654,8.617,2201.2,2201.0,4.54327819]
[1750604541870,8.616,2201.1,2201.0,4.54327819]
[1750604542469,0.7678,2201.7,2201.1,4.54318295]
[1750604542770,8.615,2201.8,2201.4,14.54243996]
[1750604542954,8.615,2201.8,2201.6,4.5421374]
[1750604543466,7.25335032,2202.1,2201.2,22.24478093]
[1750604543467,2.7120533,2202.1,2201.2,22.24478093]
[1750604543678,11.71315405,2202.0,2201.9,4.54153231]
[1750604543881,1.9442533,2202.1,2202.0,4.54132606]
[1750604544056,1.9442533,2202.1,2202.0,14.58673359]
[1750604544222,1.9442533,2202.1,2202.0,14.54132606]
[1750604544421,1.9442533,2202.1,2202.0,10.0]
[1750604544624,1.9442533,2202.1,2201.3,2.27947809]
[1750604544625,0.7678,2202.0,2201.3,2.27947809]
[1750604544844,13.15366439,2201.9,2201.3,4.54266922]
[1750604545071,13.15356465,2201.9,2201.2,4.54287593]
[1750604545226,4.96564451,2201.8,2201.3,4.54270656]
[1750604545424,0.42388034,2201.7,2201.3,4.54270656]
[1750604545625,8.612,2201.9,2201.2,10.0]
[1750604545857,1.65647198,2201.8,2201.2,14.54297655]
[1750604546057,8.611,2201.8,2201.0,16.78810538]
[1750604546268,8.611,2201.8,2201.5,4.54222215]
[1750604546579,8.611,2201.8,2201.2,14.54291392]
[1750604546724,8.61,2201.8,2201.4,10.0]
[1750604546930,8.61,2201.8,2201.7,4.54194486]
[1750604547373,9.81528,2201.8,2201.3,10.0]
[1750604547574,8.61,2201.8,2201.6,4.54198913]
[1750604547771,0.7678,2202.0,2201.7,4.5417999]
[1750604547976,8.608,2201.8,2201.7,4.5417999]
[1750604548857,8.608,2201.8,2201.7,4.54182812]
[1750604549080,8.608,2201.8,2201.5,10.0]
[1750604549284,8.608,2201.8,2201.7,4.54194486]
[1750604550661,0.7678,2202.0,2201.8,4.54169236]
[1750604550861,0.7678,2202.0,2201.9,4.54153231]
[1750604551053,9.3718,2202.0,2201.7,4.54185241]
[1750604551249,9.3718,2202.0,2201.8,4.54169852]
[1750604551448,9.3718,2202.0,2201.9,4.54153231]
[1750604552803,0.7892,2202.3,2202.2,4.54091363]
[1750604552955,8.601,2202.3,2202.2,4.54091363]
[1750604553159,0.7892,2202.6,2202.5,4.54029511]
[1750604553460,0.7892,2202.6,2201.9,23.15310377]
[1750604553461,8.6,2202.6,2202.1,0.7293]
[1750604553660,8.6,2202.6,2202.4,4.54039845]
[1750604553862,8.6,2202.6,2202.1,0.7293]
[1750604553863,21.00657957,2202.6,2201.3,0.7293]
[1750604554070,0.7892,2202.4,2201.5,10.0]
[1750604554285,5.32984895,2202.4,2201.9,4.54141473]
[1750604554503,8.599,2202.3,2201.9,4.54152663]
[1750604554705,8.599,2202.3,2201.4,22.24478093]
[1750604554706,8.599,2202.3,2201.4,4.99170086]
[1750604554874,8.599,2202.3,2202.0,4.54121189]
[1750604555066,8.599,2202.3,2201.9,4.54144116]
[1750604555491,0.7892,2202.4,2201.7,10.0]
[1750604555699,8.598,2202.3,2202.2,4.54091363]
[1750604555915,11.7398,2202.7,2201.9,0.04540815]
[1750604556105,11.6700676,2202.6,2201.9,1.75612388]
[1750604556301,11.7398,2202.7,2202.0,4.54131689]
[1750604556619,8.596,2202.6,2202.4,4.54040029]
[1750604556764,8.596,2202.6,2202.4,4.54039462]
[1750604556961,11.7398,2202.7,2202.6,4.54008898]
[1750604557162,1.90479573,2202.8,2202.7,14.53988287]
[1750604557463,8.595,2203.2,2203.1,4.53905859]
[1750604557671,10.911,2203.7,2203.0,10.7293]
[1750604557672,0.8278,2203.7,2203.0,10.7293]
[1750604557875,8.595,2203.6,2203.1,4.5389844]
[1750604558275,8.595,2203.6,2203.2,4.53885257]
[1750604558670,8.595,2203.6,2203.1,4.53894086]
[1750604558995,8.595,2203.6,2203.2,4.53883974]
[1750604559397,0.8278,2203.7,2203.0,10.0]
[1750604559604,8.592,2203.5,2203.4,4.53834896]
[1750604559829,8.592,2203.5,2203.2,4.53872072]
[1750604559830,8.592,2203.5,2203.3,4.53855645]
[1750604560020,8.592,2203.5,2203.1,4.53905622]
[1750604560218,8.592,2203.5,2203.2,4.53884306]
[1750604560405,3.85623715,2203.7,2202.9,0.55]
[1750604560728,0.37943715,2203.7,2203.6,4.53802868]
[1750604561030,10.911,2204.5,2203.6,29.468951]
[1750604561200,8.589,2204.6,2204.1,10.0]
[1750604561402,0.8278,2204.3,2203.3,0.7293]
[1750604561631,2.648,2204.2,2203.4,10.0]
[1750604561830,3.4758,2204.3,2203.8,4.53747634]
[1750604562034,8.587,2204.5,2204.1,12.24478093]
[1750604562199,3.5185,2204.9,2204.8,4.53555878]
[1750604562395,3.5185,2204.9,2204.8,14.53555878]
[1750604562850,3.5185,2204.9,2204.5,5.265476]
[1750604562851,3.5185,2204.9,2203.9,0.7293]
[1750604563000,8.585,2204.8,2204.3,4.53646488]
[1750604563335,9.87802,2204.8,2204.2,4.53672005]
[1750604563536,9.87802,2204.8,2204.3,4.53657984]
[1750604563747,8.585,2204.8,2204.3,11.00431204]
[1750604563920,12.1025,2204.9,2204.5,4.53606722]
[1750604564123,12.1025,2204.9,2204.5,4.53617147]
[1750604564322,3.5185,2204.9,2204.5,4.53617147]
[1750604564495,3.5185,2204.9,2204.8,4.53555878]
[1750604564695,3.5185,2204.9,2204.8,5.44269111]
[1750604564927,3.5185,2204.9,2204.8,15.44269111]
[1750604565249,3.5185,2204.9,2204.8,28.96677204]
[1750604565717,3.5185,2204.9,2204.8,10.7293]
[1750604565931,3.5185,2204.9,2204.6,4.53592303]
[1750604565932,3.5185,2204.9,2204.6,4.53595533]
[1750604566130,3.5185,2204.9,2204.3,10.45431204]
[1750604566303,0.8267,2204.8,2203.8,1.18304763]
[1750604566650,4.53640606,2204.4,2203.7,4.53762981]
[1750604566940,4.53685054,2204.2,2203.4,5.26770233]
[1750604567106,8.579,2204.1,2203.6,4.53802868]
[1750604567624,8.579,2204.1,2203.6,4.53802668]
[1750604567833,8.576,2204.1,2203.8,10.0]
[1750604568203,8.576,2204.1,2203.7,10.0]
[1750604568417,8.576,2204.1,2203.8,4.5374953]
[1750604568636,8.576,2204.1,2203.4,1.18902576]
[1750604568819,8.576,2204.1,2203.7,10.0]
[1750604569028,0.8267,2204.7,2204.2,4.53677585]
[1750604569209,8.575,2204.7,2204.3,4.53642924]
[1750604569417,8.575,2204.7,2204.3,4.53645931]
[1750604570222,3.5185,2204.9,2204.0,10.7293]
[1750604570401,3.5185,2204.9,2204.6,4.53583809]
[1750604570601,3.5185,2204.9,2204.8,4.53555878]
[1750604570813,3.5185,2204.9,2204.8,26.78033971]
[1750604571236,3.5185,2204.9,2204.8,27.33033971]
[1750604571413,3.5185,2204.9,2204.8,27.50963971]
[1750604571615,3.5185,2204.9,2204.8,14.53555878]
[1750604571812,3.5185,2204.9,2204.8,10.0]
[1750604572024,3.5185,2204.9,2204.8,14.53555878]
[1750604572223,3.5185,2204.9,2204.8,4.53555878]
[1750604573019,3.5185,2204.9,2204.8,28.23746875]
[1750604573660,3.5185,2204.9,2204.8,29.40938358]
[1750604578962,3.5185,2204.9,2204.4,4.53636599]
[1750604578963,12.0805,2204.9,2203.7,12.24478093]
[1750604579118,3.5185,2204.9,2204.8,4.53555878]
[1750604579462,3.5185,2204.9,2204.8,14.53555878]
[1750604579665,3.5185,2204.9,2204.8,15.08555878]
[1750604580353,3.5185,2204.9,2204.8,16.27688055]
[1750604580714,0.7661,2205.9,2205.8,4.53350258]
[1750604581554,2.623,2206.3,2205.5,10.0]
[1750604581727,0.7661,2206.0,2205.5,10.0]
[1750604581942,0.7661,2205.8,2204.0,0.7293]
[1750604582260,4.53538669,2204.9,2204.4,4.53634913]
[1750604582480,5.30203871,2204.7,2204.2,4.53677002]
[1750604582784,0.7661,2204.7,2204.1,4.53697105]
[1750604582923,0.7661,2204.6,2203.6,12.69994751]
[1750604583119,9.3201,2204.6,2204.3,4.53644222]
[1750604583418,9.3201,2204.6,2204.1,4.53685531]
[1750604583419,13.85607374,2204.6,2204.1,4.53685531]
[1750604583626,9.3201,2204.6,2204.1,4.53685531]
[1750604583861,0.7661,2204.5,2203.6,0.45516658]
[1750604584059,8.553,2204.4,2203.7,10.0]
[1750604584274,8.553,2204.4,2204.0,4.53720508]
[1750604584453,8.553,2204.4,2204.1,4.5369635]
[1750604584645,0.7661,2204.5,2204.4,14.53638178]
[1750604584863,0.7661,2204.5,2204.4,10.0]
[1750604585060,0.7661,2204.5,2204.4,14.53638178]
[1750604585839,0.7661,2204.5,2204.4,4.53638178]
[1750604586043,8.553,2205.0,2204.4,0.04535927]
[1750604586380,11.175,2205.2,2204.6,10.0]
[1750604586558,8.552,2205.2,2205.0,4.53500594]
[1750604586737,0.7661,2205.1,2204.1,0.7293]
[1750604586934,0.7661,2205.1,2204.8,4.53554061]
[1750604587138,1.46586693,2205.1,2204.6,4.53587523]
[1750604587377,0.7661,2205.1,2204.7,4.53574264]
[1750604587678,0.7661,2205.1,2205.0,4.53514739]
[1750604588351,0.7661,2205.4,2205.2,4.53473607]
[1750604588550,0.7661,2205.4,2204.7,0.55]
[1750604588850,8.55,2205.3,2205.1,4.53479786]
[1750604589055,0.7661,2205.4,2205.2,4.53473391]
[1750604589240,0.7661,2205.4,2205.2,4.53453813]
[1750604589435,8.55,2205.3,2204.7,11.2793]
[1750604589653,8.55,2205.3,2205.2,4.53473607]
[1750604590160,0.7856,2205.2,2204.6,4.53595284]
[1750604590490,0.7856,2205.2,2205.1,4.53494172]
[1750604590791,8.549,2205.4,2204.9,4.53535307]
[1750604591010,8.549,2205.4,2205.3,4.53453044]
[1750604591157,9.74314,2205.4,2204.4,0.7293]
[1750604591359,0.7694,2205.2,2204.1,0.7293]
[1750604591558,0.7694,2204.7,2203.7,0.7293]
[1750604591759,8.548,2204.6,2203.9,4.53741095]
[1750604591982,0.7694,2204.4,2203.6,12.69254753]
[1750604592199,5.30591856,2204.4,2203.6,0.4477666]
[1750604592411,0.7694,2204.4,2203.7,4.53782275]
[1750604592594,0.7694,2204.4,2204.0,4.53710211]
[1750604592797,4.53589219,2204.7,2203.1,0.7293]
[1750604592798,0.7694,2204.2,2203.6,4.53785239]
[1750604593110,8.546,2204.1,2203.8,4.53746635]
[1750604593272,8.546,2204.1,2203.2,4.53866842]
[1750604593594,8.546,2204.1,2203.8,4.53746066]
[1750604593783,8.546,2204.1,2203.2,10.45631155]
[1750604593983,8.546,2204.1,2203.8,4.53759362]
[1750604594184,0.7694,2204.2,2203.9,4.53720842]
[1750604594513,8.545,2204.1,2203.9,4.53730082]
[1750604594721,0.7694,2204.2,2203.6,10.0]
[1750604594722,0.7694,2204.2,2204.1,4.53699922]
[1750604595814,8.546,2204.3,2204.1,4.53689975]
[1750604595973,8.545,2204.3,2204.2,4.53674039]
[1750604596712,0.7694,2204.5,2204.3,4.53645525]
[1750604596915,8.544,2204.3,2203.6,10.0]
[1750604597205,8.544,2204.3,2204.2,4.53679339]
[1750604597425,8.544,2204.3,2203.8,10.0]
[1750604597600,8.544,2204.3,2204.2,4.53679339]
[1750604598187,0.7694,2204.5,2204.3,4.53654093]
[1750604598538,8.543,2204.6,2204.5,4.536176]
[1750604599116,0.7694,2204.8,2204.3,4.53638191]
[1750604599319,8.543,2204.6,2204.4,4.53635891]
[1750604599518,0.7694,2204.8,2204.4,4.53635891]
[1750604599732,0.7694,2204.8,2204.7,4.5357645]
[1750604599938,9.3114,2204.8,2204.6,4.53587464]
[1750604600101,9.3114,2204.8,2204.7,4.5357645]
[1750604600286,9.3114,2204.8,2204.5,4.53604115]
[1750604600621,4.53594562,2204.7,2204.2,4.53667467]
[1750604600837,1.70054,2204.8,2204.3,4.53658472]
[1750604601132,1.70054,2204.8,2204.5,4.53617272]
[1750604601334,1.70054,2204.8,2204.4,4.53628098]
[1750604601335,8.54,2204.7,2204.4,4.53628098]
[1750604601636,8.54,2204.7,2204.4,4.53633998]
[1750604602143,8.54,2204.7,2204.2,4.53671916]
[1750604602144,0.7694,2204.4,2204.2,4.53677049]
[1750604602288,0.7694,2204.4,2204.1,4.53691415]
[1750604602492,0.7694,2204.4,2204.1,4.53697879]
[1750604602692,0.7694,2204.4,2204.2,4.53669551]
[1750604602887,0.7694,2204.4,2204.1,4.53689165]
[1750604603292,0.7694,2204.4,2203.8,10.0]
[1750604603497,8.538,2204.3,2203.9,4.53741095]
[1750604603692,8.538,2204.3,2203.7,4.53771065]
[1750604603892,8.538,2204.3,2203.9,4.53723585]
[1750604604131,13.07468954,2204.3,2203.7,4.53768996]
[1750604604441,8.537,2204.2,2203.5,12.24478093]
[1750604604623,8.537,2204.2,2203.9,4.53729125]
[1750604604859,8.537,2204.2,2203.8,4.537507]
[1750604605000,8.537,2204.2,2203.7,4.53772593]
[1750604605336,8.537,2204.2,2203.9,4.5373869]
[1750604605490,8.537,2204.2,2204.0,4.53719419]
[1750604605690,0.7694,2204.4,2204.0,4.53701615]
[1750604605899,8.537,2204.3,2204.2,4.53679339]
[1750604606100,8.535,2204.7,2204.2,4.53676635]
[1750604606291,8.535,2204.7,2204.4,4.53637999]
[1750604606492,8.535,2204.7,2204.5,4.53614675]
[1750604606710,8.535,2204.7,2204.6,4.53597024]
[1750604606908,0.7973,2205.4,2204.7,4.5357645]
[1750604607104,9.3323,2205.4,2204.9,10.0]
[1750604607349,9.3323,2205.4,2204.8,10.0]
[1750604607635,9.3323,2205.4,2204.7,10.0]
[1750604607844,0.7973,2205.4,2205.3,4.53453044]
[1750604608006,8.534,2205.5,2204.9,10.0]
[1750604608341,8.534,2205.5,2204.6,1.73879086]
[1750604608542,0.7973,2204.8,2203.6,4.53793371]
[1750604608768,8.534,2204.7,2204.3,14.53640701]
[1750604608916,8.533,2204.7,2204.5,4.53606095]
[1750604609513,8.533,2204.7,2204.4,4.5362588]
[1750604609729,9.91957523,2204.7,2204.3,10.0]
[1750604610043,0.7973,2204.6,2203.5,12.24478093]
[1750604610245,5.33337519,2204.6,2203.9,4.53737583]
[1750604610439,5.33337519,2204.6,2204.1,4.5369956]
[1750604610625,1.52529504,2204.5,2204.1,4.5369956]
[1750604610937,1.52529504,2204.5,2204.0,4.53712676]
[1750604610938,11.136,2204.4,2204.0,4.53712676]
[1750604611254,11.136,2204.4,2204.0,4.53709262]
[1750604611546,1.52529504,2204.5,2204.0,4.53704388]
[1750604611547,8.531,2204.3,2204.0,4.53704388]
[1750604611846,8.531,2204.3,2204.0,4.53711078]
[1750604612248,8.53,2204.2,2204.1,4.53689453]
[1750604612655,8.53,2204.2,2203.9,10.0]
[1750604612851,8.53,2204.2,2204.1,4.53699922]
[1750604613250,8.53,2204.2,2204.0,4.53713424]
[1750604613752,8.529,2204.4,2204.1,4.53685211]
[1750604614055,8.529,2204.4,2204.1,4.53696133]
[1750604614440,0.7973,2204.6,2204.1,4.53696133]
[1750604614647,8.527,2204.5,2204.1,4.53696133]
[1750604614834,8.527,2204.4,2204.2,4.53678239]
[1750604615342,8.527,2204.4,2203.9,10.0]
[1750604615668,8.527,2204.4,2203.9,14.53734802]
[1750604615867,0.7503,2204.3,2202.3,4.54055455]
[1750604616049,0.7503,2203.7,2203.0,0.37892991]
[1750604616250,0.7503,2203.7,2203.2,12.24478093]
[1750604616438,0.7503,2203.7,2203.3,4.5385201]
[1750604616963,0.7503,2203.7,2203.3,4.53864657]
[1750604617125,0.7503,2203.7,2203.3,4.94233195]
[1750604617321,0.7503,2203.7,2203.6,4.53802868]
[1750604617526,8.525,2203.8,2203.7,4.53781281]
[1750604617761,8.525,2203.8,2203.6,4.53792872]
[1750604618061,8.525,2203.8,2203.5,4.53812828]
[1750604618258,8.525,2203.8,2203.7,4.53782275]
[1750604618940,8.525,2203.8,2203.2,16.78361377]
[1750604618941,8.525,2203.8,2203.3,10.0]
[1750604619261,8.525,2203.8,2203.7,4.53782275]
[1750604619762,8.523,2204.4,2204.1,4.53699922]
[1750604620070,0.7503,2205.0,2204.3,4.53658757]
[1750604620251,0.7503,2205.5,2205.3,4.5343774]
[1750604620423,0.7503,2206.3,2205.4,16.77897042]
[1750604620627,0.42324218,2206.2,2205.5,4.57933542]
[1750604620861,8.522,2206.1,2205.5,4.53411924]
[1750604621060,8.522,2206.1,2205.4,12.24478093]
[1750604621249,8.522,2206.1,2205.8,4.53337592]
[1750604621564,0.7503,2206.3,2206.2,4.53268062]
[1750604621765,0.7503,2206.3,2205.6,0.55]
[1750604621766,0.7503,2206.3,2205.8,10.0]
[1750604622062,0.7503,2206.3,2206.2,4.53268062]
[1750604622063,9.2703,2206.3,2206.2,4.53268062]
[1750604622864,0.8076,2206.8,2206.3,4.53246864]
[1750604623066,8.519,2206.7,2206.2,4.53253218]
[1750604623229,8.519,2206.7,2206.3,4.5324389]
[1750604623624,0.8076,2207.2,2206.3,12.24478093]
[1750604623842,0.8076,2207.2,2207.0,4.53086919]
[1750604624039,9.3256,2207.2,2206.1,0.7293]
[1750604624331,9.3256,2207.2,2206.7,4.53165025]
[1750604624531,0.8076,2207.2,2206.6,12.24478093]
[1750604624733,8.515,2207.4,2206.7,10.04531021]